Cogmind - Beta 16.1 @@@ ROGUE MODE // 2026.04.16 @ 21:36:23 Player: Parkagirl Result: Destroyed by S-27 Virus with Autogun Performance ------------- Evolutions (5) 2500 Regions Visited (8) 1600 Robots Destroyed (21) 105 Value Destroyed (411) 411 Prototype IDs (5) 100 Alien Tech Used (0) 0 Bonus (535) 535 TOTAL SCORE: 5251 Bonus ------- Follower Combat Kills 35 Entered DSFs 500 Cogmind --------- Core Integrity 0/1000 Matter 39/300 Energy 99/100 System Corruption 1% Temperature Cool (0) Movement Core (50) Location -5/Factory Parts ------- > --- POWER (2) -------- (None) > --- PROPULSION (6) --- (None) > --- UTILITY (6) ------ (None) > --- WEAPON (3) ------- (None) > --- INVENTORY (5) ---- Small Battery (100) Improved Field Recycling Unit (0) Missile Launcher Peak State ------------ > --- POWER ------------ Light Ion Engine > --- PROPULSION ------- Xenon Bombardment Thruster Xenon Bombardment Thruster Xenon Bombardment Thruster Xenon Bombardment Thruster > --- UTILITY ---------- Small Storage Unit Advanced Targeting Computer ECM Suite Shield Generator > --- WEAPON ----------- Autogun Autogun > --- INVENTORY -------- Ion Engine Light Ion Engine Improved Treads Flight Unit Flight Unit Shotgun Missile Launcher Mining Laser [Rating: 29] Favorites ----------- Power Ion Engine Engine Ion Engine Power Core Light Nuclear Core Propulsion Hover Unit Treads Improved Treads Leg Aluminum Leg Wheel Wheel Hover Unit Hover Unit Flight Unit Xenon Bombardment Thruster Utility Small Storage Unit Device ECM Suite Storage Small Storage Unit Processor Advanced Targeting Computer Weapon Assault Rifle Energy Gun EM Shotgun Ballistic Gun Assault Rifle Launcher Missile Launcher Special Weapon Mining Laser Build | -11 -10 -10 -9 -8 -7 -6 -6 -5 ------- Run | Yrd Mat Min Mat Mat Fac Fac DSF Fac Slots Evolved 10 | . . . 2 2 2 2 . 2 Power 1 | . . . . . . 1 . . Propulsion 4 | . . . 1 1 1 1 . . Utility 4 | . . . 1 1 . . . 2 Weapon 1 | . . . . . 1 . . . Parts Attached 49 | 7 4 7 11 12 5 1 . 2 Power 8 | 1 . 2 1 1 2 1 . . Engine 5 | 1 . 1 1 . 2 . . . Core 3 | . . 1 . 1 . 1 . . Reactor . | . . . . . . . . . Propulsion 20 | 2 4 2 4 7 1 . . . Treads 1 | . . . . 1 . . . . Leg 2 | . 2 . . . . . . . Wheel 3 | 2 . . . . 1 . . . Hover 5 | . 2 2 1 . . . . . Flight 9 | . . . 3 6 . . . . Utility 10 | 2 . 1 2 2 1 . . 2 Device 6 | 1 . 1 1 1 . . . 2 Storage 3 | 1 . . 1 . 1 . . . Processor 1 | . . . . 1 . . . . Hackware . | . . . . . . . . . Protection . | . . . . . . . . . Artifact . | . . . . . . . . . Weapon 11 | 2 . 2 4 2 1 . . . Energy Gun 1 | . . . 1 . . . . . Energy Cannon . | . . . . . . . . . Ballistic Gun 8 | 2 . 1 3 2 . . . . Ballistic Cannon . | . . . . . . . . . Launcher 1 | . . . . . 1 . . . Special Weapon 1 | . . 1 . . . . . . Impact Weapon . | . . . . . . . . . Slashing Weapon . | . . . . . . . . . Piercing Weapon . | . . . . . . . . . Special Melee Weapon . | . . . . . . . . . Unidentified Prototypes 1 | . . . . 1 . . . . Corrupted Parts 1 | . . . . 1 . . . . System Corruption 3 | . . . . 3 . . . . Parts Lost 33 | . . 6 5 12 1 . 6 3 Power 7 | . . 1 . 2 1 . 2 1 Propulsion 13 | . . 2 3 7 . . 1 . Utility 7 | . . 1 1 1 . . 2 2 Weapon 6 | . . 2 1 2 . . 1 . Highest Loss Streak 10 | . . 6 5 10 1 . 6 3 To Critical Strikes . | . . . . . . . . . Average Backups 5 | 5 7 7 3 6 4 4 4 2 Power 1 | . 1 . . 2 1 1 1 . Propulsion 1 | 3 3 2 1 2 . . . . Utility 1 | . 1 1 . . 1 2 2 1 Weapon 1 | 1 2 1 2 2 1 1 1 . Tool/Special . | . . . . . . . . . Unused Backups 2 | . 2 . . . . . . . Power . | . . . . . . . . . Propulsion 2 | . 2 . . . . . . . Utility . | . . . . . . . . . Weapon . | . . . . . . . . . Tool/Special . | . . . . . . . . . Average Slot Usage (%) 63 | . 98 85 88 74 35 46 35 16 Engine 6 | . 14 2 11 5 6 6 5 3 Core 2 | . . 9 . . . 6 4 . Wheel 3 | . 20 . . . 2 6 4 . Hover 8 | . 4 23 19 . . . . . Flight 4 | . . . 9 28 . . . . Device 10 | . 14 11 16 10 7 6 6 10 Storage 9 | . 14 14 11 9 7 6 4 . Processor 2 | . . . . 6 7 6 4 . Ballistic Gun 11 | . 28 23 12 12 . . . . Special Weapon 1 | . . . 1 . 2 6 4 . Peak Build Rating 29 | 8 8 10 13 29 19 22 23 12 Average Rating 10 | 5 7 8 10 19 10 22 16 5 On Entrance 8 | . 8 8 7 9 5 19 22 2 Avg Prop Armor Cover (%) 3 | . . . . 3 . . . . Naked Turns 24 | . . . . . . . . 24 Heaviest Build 25 | 15 15 15 19 18 18 24 24 25 Greatest Support 28 | 20 20 12 18 23 28 28 28 3 Greatest Overweight (x) 8 | 1 4 3 4 2 3 . 5 8 Average Overweight (x) . | . . 1 . . 1 . . 1 Largest Inventory Capacity 8 | 8 8 8 8 8 8 8 8 5 Average Capacity 7 | 7 8 8 8 8 8 8 7 5 Most Carried 8 | 8 8 8 8 8 6 4 5 4 Average Carried 5 | 5 7 7 3 6 4 4 4 2 Final Capacity 8 | 8 8 8 8 8 8 8 5 5 Final Carried 8 | 8 8 2 8 4 5 4 5 3 Class Distribution -------------------- 95% | Mutant 4% | Scavenger-Mutant Dominant Class ---------------- Mutant | -10/Materials Mutant | -10/Mines Mutant | -9/Materials Mutant | -8/Materials Mutant | -7/Factory Mutant | -6/Factory Mutant | -6/DSF Mutant | -5/Factory Resources | -11 -10 -10 -9 -8 -7 -6 -6 -5 ----------- Run | Yrd Mat Min Mat Mat Fac Fac DSF Fac Matter Collected 746 | 313 59 90 130 136 4 . 14 . Remotely . | . . . . . . . . . Salvage Created 509 | 107 34 80 102 182 4 . . . Parts 47 | 7 3 10 14 13 . . . . Haulers Intercepted . | . . . . . . . . . Recyclers Shooed . | . . . . . . . . . Parts Field Recycled . | . . . . . . . . . Retrieved Matter . | . . . . . . . . . Parts Self-Destructed . | . . . . . . . . . Prevented . | . . . . . . . . . Parts Restored . | . . . . . . . . . Kills | -11 -10 -10 -9 -8 -7 -6 -6 -5 ------- Run | Yrd Mat Min Mat Mat Fac Fac DSF Fac Combat Hostiles Destroyed 17 | . 3 3 6 4 1 . . . Guns 16 | . 3 3 6 4 . . . . Cannons 1 | . . . . . 1 . . . Classes Destroyed 6 | 2 1 1 1 1 . . . . Worker 1 | . . . 1 . . . . . Tunneler 2 | 2 . . . . . . . . Recycler 1 | 1 . . . . . . . . Swarmer 11 | . 3 2 6 . . . . . Grunt 5 | . . 1 . 3 1 . . . Sentry 1 | . . . . 1 . . . . Best Kill Streak 7 | 3 3 2 7 1 1 . . . Combat Bots Only 6 | . 3 2 6 1 1 . . . Max Kills in Single Turn 2 | 2 2 1 2 1 1 . . . Gunslinging 1 | . 1 . . . . . . . Exploded . | . . . . . . . . . Melee . | . . . . . . . . . Uniques/NPCs Destroyed . | . . . . . . . . . Combat | -11 -10 -10 -9 -8 -7 -6 -6 -5 -------- Run | Yrd Mat Min Mat Mat Fac Fac DSF Fac Hostile Shots Fired 386 | . 25 50 61 97 23 . 30 100 Missed 114 | . 11 14 11 28 7 . 7 36 Hits 272 | . 14 36 50 69 16 . 23 64 Projectile 272 | . 14 36 50 69 16 . 23 64 Critical Strikes 5 | . . . . 1 1 . 3 . Part Disruptions 1 | . . . . 1 . . . . Damage Taken 3994 | . 109 436 400 1074 261 . 633 1081 Core 1876 | . 14 125 102 282 100 . 248 1005 Absorbed by Shields 58 | . . . . 58 . . . . Core Remaining (%) 70 | 100 . 44 74 48 85 . 70 . Volleys Fired 66 | 10 7 16 8 22 3 . . . Largest 2 | 2 2 2 2 2 1 . . . Hottest 100 | 40 40 40 68 46 100 . . . Shots Fired 122 | 20 14 29 13 43 3 . . . Gun 119 | 20 14 29 13 43 . . . . Cannon . | . . . . . . . . . Launcher . | . . . . . . . . . Special 3 | . . . . . 3 . . . Kinetic 114 | 20 14 29 8 43 . . . . Thermal 3 | . . . . . 3 . . . Explosive . | . . . . . . . . . Electromagnetic 5 | . . . 5 . . . . . Robot Hit Streak 10 | 5 7 6 5 10 1 . . . Robot Miss Streak 4 | 2 4 4 4 3 1 . . . Penetration Max . | . . . . . . . . . Secondary Targets 6 | . 2 2 . 2 . . . . Max Gunslinging Chain 1 | . 1 1 . 1 . . . . Shots Hit Robots 81 | 14 9 16 9 31 2 . . . Core Hits 36 | 4 3 5 10 12 2 . . . Critical Kills . | . . . . . . . . . Critical Parts Destroyed . | . . . . . . . . . Critical Strikes . | . . . . . . . . . Melee Attacks . | . . . . . . . . . Impact . | . . . . . . . . . Slashing . | . . . . . . . . . Piercing . | . . . . . . . . . Sneak Attacks . | . . . . . . . . . Combat Hostiles . | . . . . . . . . . Follow-up Attacks . | . . . . . . . . . Damage Inflicted 1242 | 178 115 201 139 515 68 . 12 14 Guns 1147 | 178 114 201 139 515 . . . . Cannons . | . . . . . . . . . Explosions . | . . . . . . . . . Melee . | . . . . . . . . . Ramming 47 | . 1 . . . 20 . 12 14 Kinetic 1098 | 178 114 201 90 515 . . . . Thermal 48 | . . . . . 48 . . . Explosive . | . . . . . . . . . Electromagnetic 49 | . . . 49 . . . . . Impact . | . . . . . . . . . Slashing . | . . . . . . . . . Piercing . | . . . . . . . . . Highest Corruption 9 | . . . . 9 2 . 4 1 Average Corruption 3 | . . . . 5 1 . 4 1 Corruption Purged . | . . . . . . . . . Corruption Blocked . | . . . . . . . . . Effects 11 | . . . . 8 2 . 1 . Message Errors 2 | . . . . 2 . . . . Matter Fused 3 | . . . . 2 1 . . . Heat Flow Errors 1 | . . . . . 1 . . . Parts Rejected 2 | . . . . 1 . . 1 . Data Loss (minor) 2 | . . . . 2 . . . . Misfires 1 | . . . . 1 . . . . Overload Shots . | . . . . . . . . . Overflow Damage 2 | . . . . . . . 2 . Projectiles . | . . . . . . . . . Explosions . | . . . . . . . . . Melee 2 | . . . . . . . 2 . Knockbacks 1 | . . . . . . . 1 . Impact 1 | . . . . . . . 1 . Kinetic . | . . . . . . . . . Secondary . | . . . . . . . . . Self-Inflicted Damage 21 | . . . . . 9 . 6 6 Shots . | . . . . . . . . . Rammed 8 | . 1 . . . 2 . 1 4 Targets Rammed 8 | . 1 . . . 2 . 1 4 Kicked . | . . . . . . . . . Crushed . | . . . . . . . . . Highest Temperature 132 | . . 6 14 41 132 . . . Average Temperature 14 | . . 3 10 12 59 . . . Received Heat Transfer 1002 | . . 234 . 534 162 . 72 . Siege Activations . | . . . . . . . . . Martial Activations . | . . . . . . . . . Shielding Activations . | . . . . . . . . . Robots Disrupted . | . . . . . . . . . Combat Hostiles . | . . . . . . . . . Robots Corrupted . | . . . . . . . . . Combat Hostiles . | . . . . . . . . . Parts Fried . | . . . . . . . . . Impact Corruptions 1 | . . . . . . . 1 . Robots Melted . | . . . . . . . . . Combat Hostiles . | . . . . . . . . . Parts Melted . | . . . . . . . . . Heat Transferred 100 | . . . . . 100 . . . Parts Sabotaged . | . . . . . . . . . Parts Stolen . | . . . . . . . . . Parts Stripped . | . . . . . . . . . Power Chain Reactions . | . . . . . . . . . Alert | -11 -10 -10 -9 -8 -7 -6 -6 -5 ------- Run | Yrd Mat Min Mat Mat Fac Fac DSF Fac Maximum Alert Level . | . . . . . . . . . Low Security (%) 100 | 100 100 100 100 100 100 100 100 100 Level 1 . | . . . . . . . . . Level 2 . | . . . . . . . . . Level 3 . | . . . . . . . . . Level 4 . | . . . . . . . . . Level 5 . | . . . . . . . . . High Security . | . . . . . . . . . Max Security . | . . . . . . . . . Peak Influence 85 | 10 70 55 75 65 85 9 9 20 Initial 14 | . . 5 11 14 13 9 9 . Average 16 | 1 32 16 25 18 19 9 5 . Influence Increases 727 | 15 105 157 135 190 95 5 . 25 Destroy 0b10 Robot/C 360 | . 60 80 120 80 20 . . . Destroy 0b10 Robot/NC 20 | 15 . . 5 . . . . . Destroy Leader 70 | . 10 30 10 20 . . . . Allied During Kill 2 | . . 2 . . . . . . Successful Hack 20 | . 5 . . . . 5 . 10 Lose Combat Pursuer 255 | . 30 45 . 90 75 . . 15 Influence Decreases 707 | 15 90 143 129 195 106 10 14 5 Entered New Map 81 | . . 10 18 21 17 10 5 . Time Decay 445 | 15 90 111 61 74 89 . . 5 Lost Part 161 | . . 2 50 100 . . 9 . Lost Ally 20 | . . 20 . . . . . . Squads Dispatched 5 | . 1 1 . 1 1 . 1 . Investigation 1 | . . . . 1 . . . . Extermination 1 | . . . . . 1 . . . Reinforcement 2 | . 1 . . . . . 1 . Assault 1 | . . 1 . . . . . . Garrison . | . . . . . . . . . Intercept . | . . . . . . . . . Searches Triggered . | . . . . . . . . . Construction Impeded . | . . . . . . . . . Haulers Reinforced . | . . . . . . . . . Active Scanning Responses . | . . . . . . . . . Cargo Convoy Interrupts . | . . . . . . . . . Stealth | -11 -10 -10 -9 -8 -7 -6 -6 -5 --------- Run | Yrd Mat Min Mat Mat Fac Fac DSF Fac Distress Signals 6 | . . . . 5 1 . . . Communications Jammed . | . . . . . . . . . Distress Signals . | . . . . . . . . . Times Spotted 71 | . 6 11 13 18 10 . 3 10 Peak Tracking Total 10 | . 3 4 8 8 5 . 3 10 Tactical Retreats 14 | . 1 2 1 4 4 . 1 1 ECM-based Alert Blocks 11 | . . 3 2 . 5 . 1 . Traps | -11 -10 -10 -9 -8 -7 -6 -6 -5 ------- Run | Yrd Mat Min Mat Mat Fac Fac DSF Fac Traps Triggered 2 | . . . . . 1 . . 1 Indirectly . | . . . . . . . . . Trap Hack Attempts . | . . . . . . . . . Triggered . | . . . . . . . . . Disarmed . | . . . . . . . . . Reprogrammed . | . . . . . . . . . Reused . | . . . . . . . . . Traps Extracted . | . . . . . . . . . Installed . | . . . . . . . . . Triggered . | . . . . . . . . . Machines | -11 -10 -10 -9 -8 -7 -6 -6 -5 ---------- Run | Yrd Mat Min Mat Mat Fac Fac DSF Fac Machines Disabled . | . . . . . . . . . Max in Single Turn . | . . . . . . . . . Machines Repaired . | . . . . . . . . . Machines Dismantled . | . . . . . . . . . Machines Sabotaged . | . . . . . . . . . Overloaded Fab Kills . | . . . . . . . . . Hacking | -11 -10 -10 -9 -8 -7 -6 -6 -5 --------- Run | Yrd Mat Min Mat Mat Fac Fac DSF Fac Machines Accessed 8 | . 2 . 1 1 1 1 . 2 Terminals 7 | . 2 . 1 1 . 1 . 2 Fabricators 1 | . . . . . 1 . . . Repair Stations . | . . . . . . . . . Recycling Units . | . . . . . . . . . Scanalyzers . | . . . . . . . . . Garrison Access . | . . . . . . . . . Total Hacks 18 | . 7 . 2 2 2 1 . 4 Successful 7 | . 4 . . . . 1 . 2 Failed 11 | . 3 . 2 2 2 . . 2 Catastrophic 2 | . . . . 1 1 . . . Database Lockouts . | . . . . . . . . . Manual . | . . . . . . . . . Terminals 16 | . 7 . 2 2 . 1 . 4 Fabricators 2 | . . . . . 2 . . . Repair Stations . | . . . . . . . . . Recycling Units . | . . . . . . . . . Scanalyzers . | . . . . . . . . . Garrison Access . | . . . . . . . . . Terminal Hacks 7 | . 4 . . . . 1 . 2 Prototype ID Bank 2 | . 1 . . . . . . 1 Open DSF 2 | . . . . . . 1 . 1 Locate Traps 1 | . 1 . . . . . . . Dispatch Records 1 | . 1 . . . . . . . Hauler Manifests 1 | . 1 . . . . . . . Fabricator Hacks . | . . . . . . . . . Repair Station Hacks . | . . . . . . . . . Recycling Unit Hacks . | . . . . . . . . . Scanalyzer . | . . . . . . . . . Garrison Access Hacks . | . . . . . . . . . Unauthorized Hacks . | . . . . . . . . . Terminals . | . . . . . . . . . Fabricators . | . . . . . . . . . Repair Stations . | . . . . . . . . . Recycling Units . | . . . . . . . . . Scanalyzers . | . . . . . . . . . Garrison Access . | . . . . . . . . . Data Cores Recovered . | . . . . . . . . . Used . | . . . . . . . . . Hacking Detections 5 | . 1 . 1 1 1 . . 1 Full Trace Events 2 | . 1 . . 1 . . . . Feedback Events 1 | . . . . 1 . . . . Corruption 1 | . . . . 1 . . . . Feedback Blocked . | . . . . . . . . . Robot Schematics Acquired . | . . . . . . . . . Robots Built . | . . . . . . . . . Authchips . | . . . . . . . . . Time . | . . . . . . . . . Total Robot Build Rating . | . . . . . . . . . Part Schematics Acquired . | . . . . . . . . . Parts Built . | . . . . . . . . . Authchips . | . . . . . . . . . Time . | . . . . . . . . . Total Part Build Rating . | . . . . . . . . . Part Studies Acquired . | . . . . . . . . . Parts Repaired . | . . . . . . . . . Time . | . . . . . . . . . Parts Recycled . | . . . . . . . . . Recycled Matter . | . . . . . . . . . Retrieved Matter . | . . . . . . . . . Retrieved Components . | . . . . . . . . . Parts Scanalyzed . | . . . . . . . . . Part Schematics Acquired . | . . . . . . . . . Parts Damaged . | . . . . . . . . . Bothacking | -11 -10 -10 -9 -8 -7 -6 -6 -5 ------------ Run | Yrd Mat Min Mat Mat Fac Fac DSF Fac Used RIF Installer . | . . . . . . . . . Robots Hacked . | . . . . . . . . . Non-combat . | . . . . . . . . . Combat . | . . . . . . . . . Robot Hacks Applied . | . . . . . . . . . Relay Couplers Released . | . . . . . . . . . Fabnet Peak Effective % . | . . . . . . . . . Robots Rewired . | . . . . . . . . . Allies Hacked . | . . . . . . . . . Hacks Repelled . | . . . . . . . . . Allies | -11 -10 -10 -9 -8 -7 -6 -6 -5 -------- Run | Yrd Mat Min Mat Mat Fac Fac DSF Fac Total Allies 1 | . . 1 . . . . . . Largest Group 1 | . . 1 . . . . . . Highest-Rated Group 31 | . . 31 . . . . . . Highest-Rated Ally 31 | . . 31 . . . . . . Total Orders . | . . . . . . . . . Ally Attacks 5 | . . 5 . . . . . . Total Damage 104 | . . 104 . . . . . . Kills 1 | . . 1 . . . . . . Allies Corrupted . | . . . . . . . . . Allies Melted . | . . . . . . . . . Intel | -11 -10 -10 -9 -8 -7 -6 -6 -5 ------- Run | Yrd Mat Min Mat Mat Fac Fac DSF Fac Active Infowar (turns) 1207 | 55 221 351 162 16 120 7 87 188 Terrain 125 | . . . 125 . . . . . Traps 187 | . . . . . . . . 187 Seismic 614 | 55 221 338 . . . . . . ECM 445 | . . 13 38 16 120 7 87 164 Robot Analysis Total . | . . . . . . . . . Derelict Logs Recovered 1 | . . 1 . . . . . . Drone Launches . | . . . . . . . . . Drone Recoveries . | . . . . . . . . . Exploration | -11 -10 -10 -9 -8 -7 -6 -6 -5 ------------- Run | Yrd Mat Min Mat Mat Fac Fac DSF Fac Turns Passed 1968 | 127 221 426 226 239 423 7 87 212 Spaces Moved 1646 | 93 208 298 259 261 268 7 83 169 Core 406 | 5 3 60 4 10 127 . 28 169 Treads 13 | . . . . 13 . . . . Legs 8 | . 8 . . . . . . . Wheels 458 | 88 167 . . . 141 7 55 . Hover 387 | . 30 238 119 . . . . . Flight 374 | . . . 136 238 . . . . Fastest Speed 31 | 50 80 100 34 31 100 100 50 50 Average Speed 96 | 84 89 113 69 47 147 100 98 119 Slowest Speed 450 | 100 250 200 280 160 200 100 300 450 Overloaded Moves . | . . . . . . . . . Propulsion Burnouts . | . . . . . . . . . Robots Hopped 4 | . . . 2 2 . . . . Potential Cave-ins . | . . . . . . . . . Cave-ins Triggered . | . . . . . . . . . Exploration Rate (%) 32 | 4 37 68 25 18 11 . 88 7 Regions Visited 8 Branch Regions 1 Pre-discovered Areas . | . . . . . . . . . Known Exits Taken 1 | . . . . . . 1 . . Unknown Exits Taken 6 | 1 1 1 1 1 1 . . . Scrap Searched . | . . . . . . . . . Spaces Dug . | . . . . . . . . . Terrain Destroyed . | . . . . . . . . . Melee . | . . . . . . . . . Projectile . | . . . . . . . . . AOE . | . . . . . . . . . Terrain Rammed . | . . . . . . . . . Walls Destroyed . | . . . . . . . . . Machines Disabled . | . . . . . . . . . Actions | -11 -10 -10 -9 -8 -7 -6 -6 -5 --------- Run | Yrd Mat Min Mat Mat Fac Fac DSF Fac Total 1891 | 118 229 355 288 339 289 7 87 179 Wait 72 | . . 34 2 35 1 . . . Move 1630 | 92 207 297 254 256 267 6 82 169 Hop 4 | . . . 2 2 . . . . Pick Up 26 | 9 4 . 7 1 4 . 1 . Fast Attach 22 | 6 2 1 5 6 1 . 1 . Attach 30 | 1 . 6 5 6 7 1 . 4 Detach 9 | . . . 3 . 4 . . 2 Swap 7 | . 2 . 1 4 . . . . Drop 15 | . 6 1 1 7 . . . . Fire 66 | 10 7 16 8 22 3 . . . Melee . | . . . . . . . . . Ram 8 | . 1 . . . 2 . 1 4 Kick . | . . . . . . . . . Crush . | . . . . . . . . . Escape Stasis . | . . . . . . . . . Rewire 2 | . . . . . . . 2 . Trap . | . . . . . . . . . Miscellaneous . | . . . . . . . . . Route ------- -11/Scrapyard -10/Materials -10/Mines -9/Materials (discovered 2 exits: *Mat / Min) -8/Materials -7/Factory -6/Factory -6/DSF -5/Factory History --------- Turn | Location | Event 7 | -11/Scrapyard | Discovered new exit (range 15) 128 | -11/Scrapyard | Entered Materials 331 | -10/Materials | Build established: Mutant 336 | -10/Materials | Discovered new exit (range 11) 349 | -10/Materials | Entered Mines 588 | -10/Mines | Met a Derelict testing a Signal Generator 704 | -10/Mines | Core integrity fell below 50% 733 | -10/Mines | Lost 6 parts (1p2n1u2w) 757 | -10/Mines | Learned location of 1 exit from Materials 757 | -10/Mines | Discovered new exit (range 8) 775 | -10/Mines | Entered Materials 775 | -9/Materials | Evolved 2 slots: Propulsion x1, Utility x1 776 | -9/Materials | Identified exit to Mines 940 | -9/Materials | Lost 5 parts (3n1u1w) 992 | -9/Materials | Discovered new exit (range 15) 1001 | -9/Materials | Entered another Materials area 1001 | -8/Materials | Evolved 2 slots: Propulsion x1, Utility x1 1216 | -8/Materials | Discovered new exit (range 16) 1226 | -8/Materials | Lost 10 parts (2p5n1u2w) 1238 | -8/Materials | Core integrity fell below 50% 1240 | -8/Materials | Entered Factory 1240 | -7/Factory | Evolved 2 slots: Propulsion x1, Weapon x1 1656 | -7/Factory | Discovered new exit (range 9) 1663 | -7/Factory | Entered another Factory area 1663 | -6/Factory | Evolved 2 slots: Power x1, Propulsion x1 1670 | -6/Factory | Identified exit to DSF 1670 | -6/Factory | Entered DSF 1701 | -6/DSF | Additional patrols routed to DSF 1749 | -6/DSF | Discovered new exit (range 14) 1757 | -6/DSF | Entered Factory 1757 | -5/Factory | Evolved 2 slots: Utility x2 1775 | -5/Factory | Lost 6 parts (2p1n2u1w) 1948 | -5/Factory | Core integrity fell below 50% 1960 | -5/Factory | Core integrity fell below 20% 1969 | -5/Factory | Destroyed by S-27 Virus with Autogun Last Messages --------------- PARAMETERS=UTILITY+2 LOCATION=UNKNOWN GOAL=ESCAPE 01797_ Connecting with Terminal... 01797_ Current location identified: Factory >>Prototypes Downloading prototype IDs... Hvy. Gatling Laser Exp. Terrain Scan Processor 01921_ Triggered Heavy Explosive Trap. 01921_ An explosion rips through the floor. 01921_ ECM Suite destroyed. 01926_ Lgt. Ion Engine destroyed. 01943_ Slammed into S-27 Virus. 01943_ Destabilizing: Core damaged (-40). 01944_ Slammed into S-27 Virus. 01945_ Trap Scanner destroyed. 01946_ Slammed into S-27 Virus. 01946_ Destabilizing: System corrupted (+1). 01964_ Connecting with DSF Access... Map ----- +----------------------------------------------------+ | ??????????????????????????????????? ??? """ ??? | | ??????????????????????????????????? """ """ #?? | | ???????????????????????????????????? """ """ #?? | | ???????????????????????????????????? #?? | | ????????????????????????????????????? """ """ #?? | | ???????????????? #??????????????????? """ R" #?? | | ???????????????? ??????????????????? """ ??" #?? | | ???????????????? ?????????????????? ?? #?? | | ??????????????? #######+###########+#+####+# | | ??????????????? + | | ??????????????? # | | ??????????????? #?? | | ?????????????? #?? | | ??????????????? #?? | | ??????????????????####### s################ #?? | | ????????????????????????# sss#?????# # ### | | ????????????????????????# s #?????# """ # | | ???????????????????????## s #?????# """ # | | ???????????????????????# ss #?????# """ # | | ???????????????????????#T s #?????# / | | ???????????????????????## #?????# """ # | | ????????????????????????# #?????# """ # | | ????????????????????????# #?????# """ # | | ????????????????????????# #?????# # | | ????????????????????????# #?????########## | | ????????????????????????#@ #??????????????# | | ????????????????????????# +??????????????# | | ????????????????????????# #??????????????# | | ????????????????????????# #??????????????# | | ????????????????????????# #??????????????# | | ????????????????????????# #??????????????# | | ????????????????????????# #??????????????+ | | ????????????????????????# #??????????????# | | ????????????????????????# #??????????????# | | ????????????????????????? #??????????????# | | ????????????????????????? #??????????????# | | ????????????????????????? #??????????????# | | ????????????????????????? #???????????????? | | ????????????????????????? #?????????????????? | | ????????????????????????? ???????????????????? | | ????????????????????????? ?????????????????????? | | ?????????????????????????????????????????????????? | | ?????????????????????????????????????????????????? | | ?????????????????????????????????????????????????? | | ?????????????????????????????????????????????????? | | ?????????????????????????????????????????????????? | | ?????????????????????????????????????????????????? | | ?????????????????????????????????????????????????? | | ?????????????????????????????????????????????????? | | ?????????????????????????????????????????????????? | +----------------------------------------------------+ Best States ------------- Heat Dissipation 40 Energy Generation 26 Energy Capacity 350 Matter Stores 300 Matter Capacity 350 Sight Range 16 Terrain Scan Range 16 Terrain Scan Density 10 ECM Strength 1 Evasion (%) 63 Targeting Accuracy 8 Recoil Reduction 1 Item Schematics ----------------- None Robot Schematics ------------------ None Fabricated ------------ Nothing Repaired ---------- Nothing Studied --------- None Alien Tech Used ----------------- None Achievements -------------- None Challenges ------------ None Game ------ Seed MolecularDeuteriumLance Manual? 0 Play Time 00:27:02 Cumulative 23.3 hours Start 2026.04.16 @ 21:09:23 End 2026.04.16 @ 21:36:23 Sessions 1 Manual Loads 0 Difficulty Rogue Special Mode None Game No. 44 Rogue 44 Adventurer 0 Explorer 0 Win Type - Total 0 Types 0/0/0/0/0/0/0/0/0/0 Lore% 22 Gallery% 23 Achievement% 20 Wizard Run 0 Options --------- Layout 0 ASCII 0 Keyboard 0 Movement Vi Keybinds 0 Fullscreen 2 Font 18/Terminus Map View 112x50 Zoom Use 0% Tactical HUD 1 Map Filters NONE Filters NONE Steam 1 RUN: 0775dc7d-acb2-4fdf-b9ad-877512e35bda